{"text_format":"1","workbook":"xlsx","n_sheets":4,"sheets":["Enrolment Effectifs 2016-17","Enrolment Effectifs 2017-18","ADE EQM 2018-19 - 2020-21","PARAM"],"not_rendered":{"charts":0,"images":0,"macros":1,"external_links":1,"defined_names":266,"comments":0,"pivot_tables":0},"unopened":[],"bounds":{"document_bytes":16777216,"sheet_cells":100000,"rows_first":2000,"rows_last":500,"rows_between":2000,"halvings":0,"cell_chars":16384,"cell_head_chars":4096},"cells_cut":0,"cells_raw":0,"read":"whole","date_system":"1900"}

{"sheet":"Enrolment Effectifs 2016-17","index":0,"n_rows":82,"n_cols":20,"rows_kept":82,"cut":false,"hidden":false,"merged":[]}
[]
["Ministry of Education / Ministère de l'Éducation "]
[null,"PRÉVISION DES EFFECTIFS POUR 2016-2017","PRÉVISIONS DES EFFECTIFS POUR 2014-2015"]
[]
["Nom du conseil ",null,"Nom du conseil ","Board name / Nom du conseil",null,"Entrez l'effectif équivalent temps plein (ETP) et l'effectif quotidien moyen (EQM) à deux décimales près."]
["Numéro du conseil",null,"Numéro du conseil",{"$f":"IF(INDEX(Brdno,MATCH(D5,DSBName,0))=0,\"ATTN: Error / Erreur\", INDEX(Brdno, MATCH(D5, DSBName,0)))","v":"ATTN: Error / Erreur"},null,"Entrez les données dans les cases blanches (les cases jaunes sont protégées)"]
[null,null,null,null,null,"Élèves du conseil (art. 4 du Règl. de l'Ont. sur les subventions) : les élèves sont des élèves du conseil s'ils sont inscrits dans des écoles "]
[null,null,null,null,null,"qui relèvent du conseil à l'exception :"]
[null,null,null,null,null,"a) des élèves auxquels l'article 49 (6) de la Loi s'applique."]
[null,null,null,null,null,"b) des élèves dont les parents ou les tuteurs ne résident pas en Ontario."]
[null,null,null,null,null,"c) des élèves pour lesquels la Couronne du chef du Canada, une bande, un conseil de bande ou une administration scolaire paie des droits de scolarité."]
[null,"PRINCIPALE PERSONNE-RESSOURCE ","PRINCIPALE PERSONNE-RESSOURCE "]
[null,null,"Nom","Nom","M00001_16"]
[null,null,"Courriel ","Courriel ","M00002_16"]
[null,null,"Téléphone","Téléphone","M00003_16"]
[null,"** Les effectifs de 2016-2017 devraient refléter les chiffres qui vont être présentés dans les Prévisions budgétaires révisées de 2016-2017."]
[null,null,"** Les effectifs de 2014-2015 devraient refléter les chiffres qui vont être présentés dans les Prévisions budgétaires révisées de 2014-2015."]
[]
[null,"EFFECTIF DE JOUR","EFFECTIF DE JOUR",null,"Dénombrement",null,null,null,null,null,"Équivalent temps plein (ETP)"]
[1,"Élèves du conseil","Élèves du conseil",null,"Col1","Col 1A","Col 2","Col 2A","Col 3","Col 3A","Col 4","Col 4A","Col 5","Col 5A","Col 6","Col 6A","Col 7","Col 7A","Col 8","Col 8A"]
[null,"31 OCTOBRE 2016","31 OCTOBRE 2014",null,"Nombre d'élèves à temps plein",null,"Nombre d'élèves à temps partiel (Note 1)",null,"ETP temps plein (ordinaires)",null,"ETP des élèves à temps plein (crédits excédentaires)",null,"ETP des élèves à temps partiel (ordinaires)",null,"ETP des élèves à temps partiel (crédits excédentaires)",null,"Total des EPT (ordinaires)",null,"Total des ETP (crédits excédentaires)"]
[null,"Élémentaire","Élémentaire"]
[1.1000000000000001,"Maternelle","Maternelle",null,"S00001E_16",null,"S00003E_16",null,"S00384E_16",{"$f":"S00001E_16","v":0},null,null,"S00004E_16",null,null,null,"S00121E_16",{"$f":"S00001E_16 + S00004E_16","v":0}]
[1.2,"Jardin d'enfants","Jardin d'enfants",null,"S00009E_16",null,"S00011E_16",null,"S00385E_16",{"$f":"S00009E_16","v":0},null,null,"S00012E_16",null,null,null,"S00300E_16",{"$f":"S00009E_16 + S00012E_16","v":0}]
[1.3,"1re à  3e année","1re à  3e année",null,"S00017E_16",null,"S00019E_16",null,"S00386E_16",{"$f":"S00017E_16","v":0},null,null,"S00020E_16",null,null,null,"S00301E_16",{"$f":"S00017E_16+S00020E_16","v":0}]
[1.4,"4e à  8e année","4e à  8e année",null,"S00025E_16",null,"S00027E_16",null,"S00387E_16",{"$f":"S00025E_16","v":0},null,null,"S00028E_16",null,null,null,"S00125E_16",{"$f":"S00025E_16+S00028E_16","v":0}]
[1.5,"Total de l'élémentaire (moins de 21 ans)","Total de l'élémentaire (moins de 21 ans)",null,"S00033E_16",{"$f":"SUM(F23:F26)","v":0},"S00035E_16",{"$f":"SUM(H23:H26)","v":0},"S00388E_16",{"$f":"SUM(J23:J26)","v":0},null,null,"S00036E_16",{"$f":"SUM(N23:N26)","v":0},null,null,"S00302E_16",{"$f":"SUM(R23:R26)","v":0}]
["1.5.1","Élémentaire (21 ans et plus)","Élémentaire (21 ans et plus)",null,"S00321E_16",null,"S00329E_16",null,"S00389E_16",{"$f":"S00321E_16","v":0},null,null,"S00323E_16",null,null,null,"S00324E_16",{"$f":"S00321E_16+S00323E_16","v":0}]
[]
[null,"Secondaire","Secondaire"]
[1.6,"9e à  12e année (moins de 21 ans)","9e à  12e année (moins de 21 ans)",null,"S00041S_16",null,"S00042S_16",null,"S00390S_16",{"$f":"S00041S_16-L31","v":0},"S00400S_16",null,"S00043S_16",null,"S00402S_16",null,"S00140S_16",{"$f":"S00390S_16+S00043S_16","v":0},"S00404S_16",{"$f":"S00400S_16+S00402S_16","v":0}]
[1.7,"9e à  12e année (21 ans et plus)","9e à  12e année (21 ans et plus)",null,"S00047S_16",null,"S00048S_16",null,"S00391S_16",{"$f":"S00047S_16","v":0},null,null,"S00049S_16",null,null,null,"S00168S_16",{"$f":"S00047S_16+S00049S_16","v":0}]
[]
[null,"31 MARS 2017","31 MARS 2015",null,"Nombre d'élèves à temps plein",null,"Nombre d'élèves à temps partiel (Note 1)",null,"ETP temps plein (ordinaires)",null,"ETP des élèves à temps plein (crédits excédentaires)",null,"ETP des élèves à temps partiel (ordinaires)",null,"ETP des élèves à temps partiel (crédits excédentaires)",null,"Total des EPT (ordinaires)",null,"Total des ETP (crédits excédentaires)"]
[null,"Elémentaire","Elémentaire"]
[1.8,"Maternelle","Maternelle",null,"S00005E_16",null,"S00007E_16",null,"S00392E_16",{"$f":"S00005E_16","v":0},null,null,"S00008E_16",null,null,null,"S00129E_16",{"$f":"S00005E_16 +S00008E_16","v":0}]
[1.9,"Jardin d'enfants","Jardin d'enfants",null,"S00013E_16",null,"S00015E_16",null,"S00393E_16",{"$f":"S00013E_16","v":0},null,null,"S00016E_16",null,null,null,"S00303E_16",{"$f":"S00013E_16 + S00016E_16","v":0}]
[1.1000000000000001,"1re à 3e année","1re à 3e année",null,"S00021E_16",null,"S00023E_16",null,"S00394E_16",{"$f":"S00021E_16","v":0},null,null,"S00024E_16",null,null,null,"S00304E_16",{"$f":"S00021E_16+S00024E_16","v":0}]
[1.1100000000000001,"4e à 8e année","4e à 8e année",null,"S00029E_16",null,"S00031E_16",null,"S00395E_16",{"$f":"S00029E_16","v":0},null,null,"S00032E_16",null,null,null,"S00133E_16",{"$f":"S00029E_16+S00032E_16","v":0}]
[1.1200000000000001,"Total de l'élémentaire (moins de 21 ans)","Total de l'élémentaire (moins de 21 ans)",null,"S00037E_16",{"$f":"SUM(F36:F39)","v":0},"S00039E_16",{"$f":"SUM(H36:H39)","v":0},"S00396E_16",{"$f":"SUM(J36:J39)","v":0},null,null,"S00040E_16",{"$f":"SUM(N36:N39)","v":0},null,null,"S00305E_16",{"$f":"SUM(R36:R39)","v":0}]
["1.12.1","Élémentaire (21 ans et plus)","Élémentaire (21 ans et plus)",null,"S00325E_16",null,"S00327E_16",null,"S00397E_16",{"$f":"S00325E_16","v":0},null,null,"S00328E_16",null,null,null,"S00330E_16",{"$f":"S00325E_16+S00328E_16","v":0}]
[]
[null,"Secondaire","Secondaire"]
[1.1299999999999999,"9e à 12e année (moins de 21 ans)","9e à 12e année (moins de 21 ans)",null,"S00044S_16",null,"S00045S_16",null,"S00398S_16",{"$f":"S00044S_16-L44","v":0},"S00401S_16",null,"S00046S_16",null,"S00403S_16",null,"S00148S_16",{"$f":"S00398S_16+S00046S_16","v":0},"S00405S_16",{"$f":"S00401S_16+S00403S_16","v":0}]
[1.1399999999999999,"9e à 12e année (21 ans et plus)","9e à 12e année (21 ans et plus)",null,"S00050S_16",null,"S00051S_16",null,"S00399S_16",{"$f":"S00050S_16","v":0},null,null,"S00052S_16",null,null,null,"S00176S_16",{"$f":"S00050S_16+S00052S_16","v":0}]
[]
["Note 1: Where a board offers a combined JK/SK program, the FTE enrolment of pupils on the program are to be reported under ‘FTE of part time pupils’  and the number of pupils enrolled are to be reported under ‘Number of part-time pupils’.","Note 1: Lorsque le conseil offre un programme combiné de maternelle et de jardin d'enfants, l'EPT pour les élèves inscrits à ce programme doit être inscrit dans les colonnes \"EPT des élèves à temps partiel\", et le nombre d'élèves inscrits doit être inscrit dans les colonnes \"Nombre d'élèves à temps partiel\". ","Note 1: Lorsque le conseil offre un programme combiné de maternelle et de jardin d'enfants, l'EPT pour les élèves inscrits à ce programme doit être inscrit dans les colonnes \"EPT des élèves à temps partiel\", et le nombre d'élèves inscrits doit être inscrit dans les colonnes \"Nombre d'élèves à temps partiel\". "]
[]
[3,"Effectif quotidien moyen 2016-2017","Effectif quotidien moyen 2014-2015",null,null,"EQM"]
[null,"Élémentaire","Élémentaire",null,null,"Élèves du conseil"]
[3.1,"Maternelle","Maternelle",null,"S00306E_16",{"$f":"ROUND(0.5*S00121E_16,2) + ROUND(0.5* S00129E_16,2)","v":0}]
[3.2,"Jardin d'enfants","Jardin d'enfants",null,"S00307E_16",{"$f":"ROUND(0.5*S00300E_16,2) + ROUND(0.5*S00303E_16,2)","v":0}]
[3.3,"1re à 3e année","1re à 3e année",null,"S00308E_16",{"$f":"ROUND(0.5*S00301E_16,2) +ROUND(0.5*S00304E_16,2)","v":0}]
[3.4,"4e à 8e année","4e à 8e année",null,"S00309E_16",{"$f":"ROUND(0.5*S00125E_16,2) +ROUND(0.5*S00133E_16,2)","v":0}]
[3.5,"École élémentaire de jour","École élémentaire de jour",null,"S00137E_16",{"$f":"SUM(F51:F54)","v":0}]
[]
[null,"Secondaire - Élèves de moins de 21 ans","Secondaire - Élèves de moins de 21 ans"]
[3.6,"EQM des écoles secondaires de jour ","EQM des écoles secondaires de jour ",null,"S00156S_16",{"$f":"ROUND(0.5*S00140S_16,2)+ROUND(0.5*S00148S_16,2)","v":0}]
[3.7,"EQM des études indépendantes","EQM des études indépendantes",null,"S00159S_16"]
[3.8,"Total de l'effectif quodidien moyen des écoles secondaires de jour","Total de l'effectif quodidien moyen des écoles secondaires de jour",null,"S00162S_16",{"$f":"S00156S_16+S00159S_16","v":0}]
[]
[3.9,"Total des écoles de jour","Total des écoles de jour",null,"S00165C_16",{"$f":"S00137E_16+S00162S_16","v":0}]
[]
[null,"Crédits excédentaires : 9e à 12e année (moins de 21 ans)","Crédits excédentaires : 9e à 12e année (moins de 21 ans)"]
[3.1,"École secondaire de jour - 9e à 12e année","École secondaire de jour - 9e à 12e année",null,"S00408S_16",{"$f":"ROUND((S00404S_16+S00405S_16)*0.5, 2)","v":0}]
[3.11,"Études indépendantes","Études indépendantes",null,"S00409S_16"]
[3.12,"Total des crédits excédentaires des écoles secondaires de jour ","Total des crédits excédentaires des écoles secondaires de jour ",null,"S00406S_16",{"$f":"S00408S_16+S00409S_16","v":0}]
[]
[3.13,"Élémentaire - 21 ans et plus","Élémentaire - 21 ans et plus",null,"S00355E_16",{"$f":"ROUND(0.5*(S00324E_16+S00330E_16),2)","v":0}]
[]
[null,"Secondaire - Élèves de 21 ans et plus","Secondaire - Élèves de 21 ans et plus"]
[3.14,"École secondaire de jour - 9e à 12e année","École secondaire de jour - 9e à 12e année",null,"S00184S_16",{"$f":"ROUND(0.5*(S00168S_16 + S00176S_16),2)","v":0}]
[3.15,"Études indépendantes","Études indépendantes",null,"S00187S_16"]
[3.16,"Total des écoles de jour pour adultes","Total des écoles de jour pour adultes",null,"S00190S_16",{"$f":"S00184S_16+S00187S_16","v":0}]
[]
[]
[]
[]
[]
[]
[]
[null," "]

{"sheet":"Enrolment Effectifs 2017-18","index":1,"n_rows":84,"n_cols":21,"rows_kept":84,"cut":false,"hidden":false,"merged":[]}
[]
["Ministry of Education / Ministère de l'Éducation "]
[null,"PRÉVISION DES EFFECTIFS POUR 2017-2018","PRÉVISION DES EFFECTIFS POUR 2015-2016",null,null,"Entrez l'effectif équivalent temps plein (ETP) et l'effectif quotidien moyen (EQM) à deux décimales près."]
[null,null,null,null,null,"Entrez les données dans les cases blanches (les cases jaunes sont protégées)"]
["Nom du conseil ",null,"Nom du conseil ",{"$f":"BoardName","v":"Board name / Nom du conseil"},null,"Élèves du conseil (art. 4 du Règl. de l'Ont. sur les subventions) : les élèves sont des élèves du conseil s'ils sont inscrits dans des écoles "]
["Numéro du conseil",null,"Numéro du conseil",{"$f":"BoardNumber","v":"ATTN: Error / Erreur"},null,"qui relèvent du conseil à l'exception :"]
[null,null,null,null,null,"a) des élèves auxquels l'article 49 (6) de la Loi s'applique."]
[null,null,null,null,null,"b) des élèves dont les parents ou les tuteurs ne résident pas en Ontario."]
[null,null,null,null,null,"c) des élèves pour lesquels la Couronne du chef du Canada, une bande, un conseil de bande ou une administration scolaire paie des droits de scolarité."]
[]
[]
[]
[]
[]
[]
[]
[]
[]
[null,"EFFECTIF DE JOUR","EFFECTIF DE JOUR",null,null,"Dénombrement",null,null,null,null,null,"Équivalent temps plein (ETP)"]
[1,"Élèves du conseil","Élèves du conseil",null,null,"Col1","Col 1A","Col 2","Col 2A","Col 3","Col 3A","Col 4","Col 4A","Col 5","Col 5A","Col 6","Col 6A","Col 7","Col 7A","Col 8","Col 8A"]
[null,"31 OCTOBRE 2017","31 OCTOBRE 2015",null,null,"Nombre d'élèves à temps plein",null,"Nombre d'élèves à temps partiel (Note 1)",null,"ETP temps plein (ordinaires)",null,"ETP des élèves à temps plein (crédits excédentaires)",null,"ETP des élèves à temps partiel (ordinaires)",null,"ETP des élèves à temps partiel (crédits excédentaires)",null,"Total des ETP (ordinaires)",null,"Total des ETP (crédits excédentaires)"]
[null,"Élémentaire","Élémentaire"]
[1.1000000000000001,"Maternelle","Maternelle",null,null,"S00001E_17",null,"S00003E_17",null,"S00384E_17",{"$f":"S00001E_17","v":0},null,null,"S00004E_17",null,null,null,"S00121E_17",{"$f":"S00001E_17+ S00004E_17","v":0}]
[1.2,"Jardin d'enfants","Jardin d'enfants",null,null,"S00009E_17",null,"S00011E_17",null,"S00385E_17",{"$f":"S00009E_17","v":0},null,null,"S00012E_17",null,null,null,"S00300E_17",{"$f":"S00009E_17 + S00012E_17","v":0}]
[1.3,"1re à 3e année","1re à 3e année",null,null,"S00017E_17",null,"S00019E_17",null,"S00386E_17",{"$f":"S00017E_17","v":0},null,null,"S00020E_17",null,null,null,"S00301E_17",{"$f":"S00017E_17+S00020E_17","v":0}]
[1.4,"4e à 8e année","4e à 8e année",null,null,"S00025E_17",null,"S00027E_17",null,"S00387E_17",{"$f":"S00025E_17","v":0},null,null,"S00028E_17",null,null,null,"S00125E_17",{"$f":"S00025E_17+S00028E_17","v":0}]
[1.5,"Total de l'élémentaire (moins de 21 ans)","Total de l'élémentaire (moins de 21 ans)",null,null,"S00033E_17",{"$f":"SUM(G23:G26)","v":0},"S00035E_17",{"$f":"SUM(I23:I26)","v":0},"S00388E_17",{"$f":"SUM(K23:K26)","v":0},null,null,"S00036E_17",{"$f":"SUM(O23:O26)","v":0},null,null,"S00302E_17",{"$f":"SUM(S23:S26)","v":0}]
["1.5.1","Élémentaire (21 ans et plus)","Élémentaire (21 ans et plus)",null,null,"S00321E_17",null,"S00329E_17",null,"S00389E_17",{"$f":"S00321E_17","v":0},null,null,"S00323E_17",null,null,null,"S00324E_17",{"$f":"S00321E_17+S00323E_17","v":0}]
[]
[null,"Secondaire","Secondaire"]
[1.6,"9e à 12e année (moins de 21 ans)","9e à 12e année (moins de 21 ans)",null,null,"S00041S_17",null,"S00042S_17",null,"S00390S_17",{"$f":"S00041S_17-M31","v":0},"S00400S_17",null,"S00043S_17",null,"S00402S_17",null,"S00140S_17",{"$f":"S00390S_17+S00043S_17","v":0},"S00404S_17",{"$f":"S00400S_17+S00402S_17","v":0}]
[1.7,"9e à 12e année (21 ans et plus)","9e à 12e année (21 ans et plus)",null,null,"S00047S_17",null,"S00048S_17",null,"S00391S_17",{"$f":"S00047S_17","v":0},null,null,"S00049S_17",null,null,null,"S00168S_17",{"$f":"S00047S_17+S00049S_17","v":0}]
[]
[null,"31 MARS 2018","31 MARS 2016",null,null,"Nombre d'élèves à temps plein",null,"Nombre d'élèves à temps partiel (Note 1)",null,"ETP temps plein (ordinaires)",null,"ETP des élèves à temps plein (crédits excédentaires)",null,"ETP des élèves à temps partiel (ordinaires)",null,"ETP des élèves à temps partiel (crédits excédentaires)",null,"Total des ETP (ordinaires)",null,"Total des ETP (crédits excédentaires)"]
[null,"Elémentaire","Elémentaire"]
[1.8,"Maternelle","Maternelle",null,null,"S00005E_17",null,"S00007E_17",null,"S00392E_17",{"$f":"S00005E_17","v":0},null,null,"S00008E_17",null,null,null,"S00129E_17",{"$f":"S00005E_17 +S00008E_17","v":0}]
[1.9,"Jardin d'enfants","Jardin d'enfants",null,null,"S00013E_17",null,"S00015E_17",null,"S00393E_17",{"$f":"S00013E_17","v":0},null,null,"S00016E_17",null,null,null,"S00303E_17",{"$f":"S00013E_17 + S00016E_17","v":0}]
[1.1000000000000001,"1re à 3e année","1re à 3e année",null,null,"S00021E_17",null,"S00023E_17",null,"S00394E_17",{"$f":"S00021E_17","v":0},null,null,"S00024E_17",null,null,null,"S00304E_17",{"$f":"S00021E_17+S00024E_17","v":0}]
[1.1100000000000001,"4e à 8e année","4e à 8e année",null,null,"S00029E_17",null,"S00031E_17",null,"S00395E_17",{"$f":"S00029E_17","v":0},null,null,"S00032E_17",null,null,null,"S00133E_17",{"$f":"S00029E_17+S00032E_17","v":0}]
[1.1200000000000001,"Total de l'élémentaire (moins de 21 ans)","Total de l'élémentaire (moins de 21 ans)",null,null,"S00037E_17",{"$f":"SUM(G36:G39)","v":0},"S00039E_17",{"$f":"SUM(I36:I39)","v":0},"S00396E_17",{"$f":"SUM(K36:K39)","v":0},null,null,"S00040E_17",{"$f":"SUM(O36:O39)","v":0},null,null,"S00305E_17",{"$f":"SUM(S36:S39)","v":0}]
["1.12.1","Élémentaire (21 ans et plus)","Élémentaire (21 ans et plus)",null,null,"S00325E_17",null,"S00327E_17",null,"S00397E_17",{"$f":"S00325E_17","v":0},null,null,"S00328E_17",null,null,null,"S00330E_17",{"$f":"S00325E_17+S00328E_17","v":0}]
[]
[null,"Secondaire","Secondaire"]
[1.1299999999999999,"9e à 12e année (moins de 21 ans)","9e à 12e année (moins de 21 ans)",null,null,"S00044S_17",null,"S00045S_17",null,"S00398S_17",{"$f":"S00044S_17-M44","v":0},"S00401S_17",null,"S00046S_17",null,"S00403S_17",null,"S00148S_17",{"$f":"S00398S_17+S00046S_17","v":0},"S00405S_17",{"$f":"S00401S_17+S00403S_17","v":0}]
[1.1399999999999999,"9e à 12e année (21 ans et plus)","9e à 12e année (21 ans et plus)",null,null,"S00050S_17",null,"S00051S_17",null,"S00399S_17",{"$f":"S00050S_17","v":0},null,null,"S00052S_17",null,null,null,"S00176S_17",{"$f":"S00050S_17+S00052S_17","v":0}]
[]
[]
["Note 1: ","Lorsque le conseil offre un programme combiné de maternelle et de jardin d'enfants, l'EPT pour les élèves inscrits à ce programme doit être inscrit dans les ","Note 1: Lorsque le conseil offre un programme combiné de maternelle et de jardin d'enfants, l'EPT pour les élèves inscrits à ce programme doit être inscrit dans les "]
[null,"colonnes \"EPT des élèves à temps partiel\", et le nombre d'élèves inscrits doit être inscrit dans les colonnes \"Nombre d'élèves à temps partiel\". ","colonnes \"EPT des élèves à temps partiel\", et le nombre d'élèves inscrits doit être inscrit dans les colonnes \"Nombre d'élèves à temps partiel\". "]
[]
[3,"Effectif quotidien moyen 2017-2018","Effectif quotidien moyen 2015-2016",null,null,null,null,null,"EQM"]
[null,"Élémentaire","Élémentaire",null,null,null,null,null,"Élèves du conseil"]
[3.1,"Maternelle","Maternelle",null,null,null,null,"S00306E_17",{"$f":"ROUND(0.5*S00121E_17,2) + ROUND(0.5* S00129E_17,2)","v":0}]
[3.2,"Jardin d'enfants","Jardin d'enfants",null,null,null,null,"S00307E_17",{"$f":"ROUND(0.5*S00300E_17,2) + ROUND(0.5*S00303E_17,2)","v":0}]
[3.3,"1re à 3e année","1re à 3e année",null,null,null,null,"S00308E_17",{"$f":"ROUND(0.5*S00301E_17,2) +ROUND(0.5*S00304E_17,2)","v":0}]
[3.4,"4e à 8e année","4e à 8e année",null,null,null,null,"S00309E_17",{"$f":"ROUND(0.5*S00125E_17,2) +ROUND(0.5*S00133E_17,2)","v":0}]
[3.5,"École élémentaire de jour ","École élémentaire de jour ",null,null,null,null,"S00137E_17",{"$f":"SUM(I53:I56)","v":0}]
[]
[null,"Secondaire - Élèves de moins de 21 ans","Secondaire - Élèves de moins de 21 ans"]
[3.6,"EQM des écoles secondaires de jour ","EQM des écoles secondaires de jour ",null,null,null,null,"S00156S_17",{"$f":"ROUND(0.5*S00140S_17,2)+ROUND(0.5*S00148S_17,2)","v":0}]
[3.7,"EQM des études indépendantes","EQM des études indépendantes",null,null,null,null,"S00159S_17"]
[3.8,"Total de l'effectif quodidien moyen des écoles secondaires de jour","Total de l'effectif quodidien moyen des écoles secondaires de jour",null,null,null,null,"S00162S_17",{"$f":"S00156S_17+S00159S_17","v":0}]
[]
[3.9,"Total des écoles de jour","Total des écoles de jour",null,null,null,null,"S00165C_17",{"$f":"S00137E_17+S00162S_17","v":0}]
[]
[null,"Crédits excédentaires : 9e à 12e année (moins de 21 ans)","Crédits excédentaires : 9e à 12e année (moins de 21 ans)"]
[3.1,"École secondaire de jour - 9e à 12e année","École secondaire de jour - 9e à 12e année",null,null,null,null,"S00408S_17",{"$f":"ROUND((S00404S_17+S00405S_17)*0.5, 2)","v":0}]
[3.11,"Études indépendantes","Études indépendantes",null,null,null,null,"S00409S_17"]
[3.12,"Total des crédits excédentaires des écoles secondaires de jour","Total des crédits excédentaires des écoles secondaires de jour",null,null,null,null,"S00406S_17",{"$f":"S00408S_17+S00409S_17","v":0}]
[]
[3.13,"Élémentaire - 21 ans et plus","Élémentaire - 21 ans et plus",null,null,null,null,"S00355E_17",{"$f":"ROUND(0.5*(S00324E_17+S00330E_17),2)","v":0}]
[]
[null,"Secondaire - Élèves de 21 ans et plus","Secondaire - Élèves de 21 ans et plus"]
[3.14,"École secondaire de jour - 9e à 12e année","École secondaire de jour - 9e à 12e année",null,null,null,null,"S00184S_17",{"$f":"ROUND(0.5*(S00168S_17 + S00176S_17),2)","v":0}]
[3.15,"Études indépendantes","Études indépendantes",null,null,null,null,"S00187S_17"]
[3.16,"Total des écoles de jour pour adultes","Total des écoles de jour pour adultes",null,null,null,null,"S00190S_17",{"$f":"S00184S_17+S00187S_17","v":0}]
[]
[]
[]
[]
[]
[]
[]
[null," "]

{"sheet":"ADE EQM 2018-19 - 2020-21","index":2,"n_rows":100,"n_cols":6,"rows_kept":100,"cut":false,"hidden":false,"merged":[]}
[]
["Ministry of Education / Ministère de l'Éducation "]
[null,"PRÉVISIONS DE L'EQM POUR 2018-2019 à 2020-2021","PRÉVISIONS DE L'EQM POUR 2016-2017 à 2018-2019"]
[]
["Nom du conseil",null,"Nom du conseil",{"$f":"BoardName","v":"Board name / Nom du conseil"}]
["Numéro du conseil",null,"Numéro du conseil",{"$f":"BoardNumber","v":"ATTN: Error / Erreur"}]
[]
[null,"Entrez l'effectif quotidien moyen (EQM) à deux décimales près.","Entrez l'effectif quotidien moyen (EQM) à deux décimales près."]
[null,"Entrez les données dans les cases blanches (les cases jaunes sont protégées)","Entrez les données dans les cases blanches (les cases jaunes sont protégées)"]
[null,"Élèves du conseil (art. 4 du Règl. de l'Ont. sur les subventions) : les élèves sont des élèves du conseil s'ils sont inscrits dans des","Élèves du conseil (art. 4 du Règl. de l'Ont. sur les subventions) : les élèves sont des élèves du conseil s'ils sont inscrits dans des écoles "]
[null," écoles qui relèvent du conseil à l'exception :","qui relèvent du conseil à l'exception :"]
[null,"a) des élèves auxquels l'article 49 (6) de la Loi s'applique.","a) des élèves auxquels l'article 49 (6) de la Loi s'applique."]
[null,"b) des élèves dont les parents ou les tuteurs ne résident pas en Ontario.","b) des élèves dont les parents ou les tuteurs ne résident pas en Ontario."]
[null,"c) des élèves pour lesquels la Couronne du chef du Canada, une bande, un conseil de bande ou une administration scolaire paie des droits de scolarité.","c) des élèves pour lesquels la Couronne du chef du Canada, une bande, un conseil de bande ou une administration scolaire paie des droits de scolarité."]
[]
[5,"Effectif quotidien moyen 2018-2019","Effectif quotidien moyen 2016-2017"]
[null,null,null,null,null,"EQM"]
[null,"Élémentaire","Élémentaire",null,null,"Élèves du conseil"]
[5.0999999999999996,"Maternelle","Maternelle",null,"S00306E_18"]
[5.2,"Jardin d'enfants","Jardin d'enfants",null,"S00307E_18"]
[5.3,"1re à 3e année","1re à 3e année",null,"S00308E_18"]
[5.4,"4e à 8e année","4e à 8e année",null,"S00309E_18"]
[5.5,"École élémentaire de jour","École élémentaire de jour",null,"S00137E_18",{"$f":"SUM(F19:F22)","v":0}]
[]
[null,"Secondaire - Élèves de moins de 21 ans","Secondaire - Élèves de moins de 21 ans"]
[5.6,"EQM des écoles secondaires de jour ","EQM des écoles secondaires de jour ",null,"S00156S_18"]
[5.7,"EQM des études indépendantes","EQM des études indépendantes",null,"S00159S_18"]
[5.8,"Total de l'effectif quodidien moyen des écoles secondaires de jour","Total de l'effectif quodidien moyen des écoles secondaires de jour",null,"S00162S_18",{"$f":"SUM(F26:F27)","v":0}]
[]
[5.9,"Total des écoles de jour","Total des écoles de jour",null,"S00165C_18",{"$f":"F23+F28","v":0}]
[]
[null,"Crédits excédentaires : 9e à 12e année (moins de 21 ans)","Crédits excédentaires : 9e à 12e année (moins de 21 ans)"]
[5.0999999999999996,"École secondaire de jour - 9e à 12e année","École secondaire de jour - 9e à 12e année",null,"S00408S_18"]
[5.1100000000000003,"Études indépendantes","Études indépendantes",null,"S00409S_18"]
[5.12,"Total des crédits excédentaires des écoles secondaires de jour ","Total des crédits excédentaires des écoles secondaires de jour ",null,"S00406S_18",{"$f":"SUM(F33:F34)","v":0}]
[]
[5.13,"Élémentaire - 21 ans et plus","Élémentaire - 21 ans et plus",null,"S00355E_18"]
[]
[null,"Secondaire - Élèves de 21 ans et plus","Secondaire - Élèves de 21 ans et plus"]
[5.14,"École secondaire de jour - 9e à 12e année","École secondaire de jour - 9e à 12e année",null,"S00184S_18"]
[5.15,"Études indépendantes","Études indépendantes",null,"S00187S_18"]
[5.16,"Total des écoles de jour pour adultes","Total des écoles de jour pour adultes",null,"S00190S_18",{"$f":"SUM(F40:F41)","v":0}]
[]
[]
[6,"Effectif quotidien moyen 2019-2020","Effectif quotidien moyen 2017-2018"]
[null,null,null,null,null,"EQM"]
[null,"Élémentaire","Élémentaire",null,null,"Élèves du conseil"]
[6.1,"Maternelle","Maternelle",null,"S00306E_19"]
[6.2,"Jardin d'enfants","Jardin d'enfants",null,"S00307E_19"]
[6.3,"1re à 3e année","1re à 3e année",null,"S00308E_19"]
[6.4,"4e à 8e année","4e à 8e année",null,"S00309E_19"]
[6.5,"École élémentaire de jour","École élémentaire de jour",null,"S00137E_19",{"$f":"SUM(F48:F51)","v":0}]
[]
[null,"Secondaire - Élèves de moins de 21 ans","Secondaire - Élèves de moins de 21 ans"]
[6.6,"EQM des écoles secondaires de jour ","EQM des écoles secondaires de jour ",null,"S00156S_19"]
[6.7,"EQM des études indépendantes","EQM des études indépendantes",null,"S00159S_19"]
[6.8,"Total de l'effectif quodidien moyen des écoles secondaires de jour","Total de l'effectif quodidien moyen des écoles secondaires de jour",null,"S00162S_19",{"$f":"SUM(F55:F56)","v":0}]
[]
[6.9,"Total des écoles de jour","Total des écoles de jour",null,"S00165C_19",{"$f":"F52+F57","v":0}]
[]
[null,"Crédits excédentaires : 9e à 12e année (moins de 21 ans)","Crédits excédentaires : 9e à 12e année (moins de 21 ans)"]
[7.1,"École secondaire de jour - 9e à 12e année","École secondaire de jour - 9e à 12e année",null,"S00408S_19"]
[7.11,"Études indépendantes","Études indépendantes",null,"S00409S_19"]
[7.12,"Total des crédits excédentaires des écoles secondaires de jour ","Total des crédits excédentaires des écoles secondaires de jour ",null,"S00406S_19",{"$f":"SUM(F62:F63)","v":0}]
[]
[7.13,"Élémentaire - 21 ans et plus","Élémentaire - 21 ans et plus",null,"S00355E_19"]
[]
[null,"Secondaire - Élèves de 21 ans et plus","Secondaire - Élèves de 21 ans et plus"]
[7.14,"École secondaire de jour - 9e à 12e année","École secondaire de jour - 9e à 12e année",null,"S00184S_19"]
[7.15,"Études indépendantes","Études indépendantes",null,"S00187S_19"]
[7.16,"Total des écoles de jour pour adultes","Total des écoles de jour pour adultes",null,"S00190S_19",{"$f":"SUM(F69:F70)","v":0}]
[]
[]
[7,"Effectif quotidien moyen 2020-2021","Effectif quotidien moyen 2018-2019"]
[null,null,null,null,null,"EQM"]
[null,"Élémentaire","Élémentaire",null,null,"Élèves du conseil"]
[7.1,"Maternelle","Maternelle",null,"S00306E_20"]
[7.2,"Jardin d'enfants","Jardin d'enfants",null,"S00307E_20"]
[7.3,"1re à 3e année","1re à 3e année",null,"S00308E_20"]
[7.4,"4e à 8e année","4e à 8e année",null,"S00309E_20"]
[7.5,"École élémentaire de jour","École élémentaire de jour",null,"S00137E_20",{"$f":"SUM(F77:F80)","v":0}]
[]
[null,"Secondaire - Élèves de moins de 21 ans","Secondaire - Élèves de moins de 21 ans"]
[7.6,"EQM des écoles secondaires de jour ","EQM des écoles secondaires de jour ",null,"S00156S_20"]
[7.7,"EQM des études indépendantes","EQM des études indépendantes",null,"S00159S_20"]
[7.8,"Total de l'effectif quodidien moyen des écoles secondaires de jour","Total de l'effectif quodidien moyen des écoles secondaires de jour",null,"S00162S_20",{"$f":"SUM(F84:F85)","v":0}]
[]
[7.9,"Total des écoles de jour","Total des écoles de jour",null,"S00165C_20",{"$f":"F81+F86","v":0}]
[]
[null,"Crédits excédentaires : 9e à 12e année (moins de 21 ans)","Crédits excédentaires : 9e à 12e année (moins de 21 ans)"]
[7.1,"École secondaire de jour - 9e à 12e année","École secondaire de jour - 9e à 12e année",null,"S00408S_20"]
[7.11,"Études indépendantes","Études indépendantes",null,"S00409S_20"]
[7.12,"Total des crédits excédentaires des écoles secondaires de jour ","Total des crédits excédentaires des écoles secondaires de jour ",null,"S00406S_20",{"$f":"SUM(F91:F92)","v":0}]
[]
[7.13,"Élémentaire - 21 ans et plus","Élémentaire - 21 ans et plus",null,"S00355E_20"]
[]
[null,"Secondaire - Élèves de 21 ans et plus","Secondaire - Élèves de 21 ans et plus"]
[7.14,"École secondaire de jour - 9e à 12e année","École secondaire de jour - 9e à 12e année",null,"S00184S_20"]
[7.15,"Études indépendantes","Études indépendantes",null,"S00187S_20"]
[7.16,"Total des écoles de jour pour adultes","Total des écoles de jour pour adultes",null,"S00190S_20",{"$f":"SUM(F98:F99)","v":0}]

{"sheet":"PARAM","index":3,"n_rows":77,"n_cols":7,"rows_kept":77,"cut":false,"hidden":true,"merged":[]}
[null,null,"DSBNo","DSBIndex","Brdno","DSBName"]
[null,null,null,null,null,"Board name / Nom du conseil"]
[null,null,2,2,28010,"Algoma DSB"]
[null,null,55,60,67202,"Algonquin and Lakeshore Catholic DSB"]
[null,null,8,10,66010,"Avon Maitland DSB"]
[null,null,7,9,66001,"Bluewater DSB"]
[null,null,51,56,67164,"Brant Haldimand Norfolk Catholic DSB"]
[null,null,35,40,67008,"Bruce-Grey Catholic DSB"]
[null,null,52,57,67172,"Catholic DSB of Eastern Ontario"]
[null,null,58,63,66303,"CS Viamonde"]
[null,null,64,70,67318,"CSD catholique Centre-Sud"]
[null,null,65,71,67326,"CSD catholique de l'Est ontarien"]
[null,null,62,68,29130,"CSD catholique des Aurores boréales"]
[null,null,60.1,65,29106,"CSD catholique des Grandes Rivières"]
[null,null,66,72,67334,"CSD catholique du Centre-Est de l'Ontario"]
[null,null,61,67,29122,"CSD catholique du Nouvel-Ontario"]
[null,null,60.2,66,29114,"CSD catholique Franco-Nord"]
[null,null,63,69,67300,"CSD des écoles catholiques du Sud-Ouest"]
[null,null,59,64,66311,"CSD des écoles publiques de l'Est de l'Ontario"]
[null,null,57,62,28118,"CSD du Grand Nord de l'Ontario"]
[null,null,56,61,28100,"CSD du Nord-Est de l'Ontario"]
[null,null,22,24,66150,"DSB of Niagara"]
[null,null,1,1,28002,"DSB Ontario North East"]
[null,null,43,48,67083,"Dufferin-Peel Catholic DSB"]
[null,null,45,50,67105,"Durham Catholic DSB"]
[null,null,13,15,66060,"Durham DSB"]
[null,null,23,25,66168,"Grand Erie DSB"]
[null,null,9,11,66028,"Greater Essex County DSB"]
[null,null,46,51,67113,"Halton Catholic DSB"]
[null,null,20,22,66133,"Halton DSB"]
[null,null,47,52,67121,"Hamilton-Wentworth Catholic DSB"]
[null,null,21,23,66141,"Hamilton-Wentworth DSB"]
[null,null,29,31,66222,"Hastings and Prince Edward DSB"]
[null,null,36,41,67016,"Huron-Perth Catholic DSB"]
[null,null,31,34,29025,"Huron-Superior Catholic DSB"]
[null,null,14,16,66079,"Kawartha Pine Ridge DSB"]
[null,null,5.0999999999999996,5,28045,"Keewatin-Patricia DSB"]
[null,null,33.200000000000003,37,29050,"Kenora Catholic DSB"]
[null,null,6.1,7,28061,"Lakehead DSB"]
[null,null,10,12,66036,"Lambton Kent DSB"]
[null,null,27,29,66206,"Limestone DSB"]
[null,null,38,43,67032,"London District Catholic School Board"]
[null,null,4,4,28037,"Near North DSB"]
[null,null,50,55,67156,"Niagara Catholic DSB"]
[null,null,30.2,33,29017,"Nipissing-Parry Sound Catholic DSB"]
[null,null,30.1,32,29009,"Northeastern Catholic DSB"]
[null,null,33.1,36,29041,"Northwest Catholic DSB"]
[null,null,53,58,67180,"Ottawa Catholic DSB"]
[null,null,25,27,66184,"Ottawa-Carleton DSB"]
[null,null,19,21,66125,"Peel DSB"]
[null,null,41,46,67067,"Peterborough V N C Catholic DSB"]
[null,null,3,3,28029,"Rainbow DSB"]
[null,null,5.2,6,28053,"Rainy River DSB"]
[null,null,54,59,67199,"Renfrew County Catholic DSB"]
[null,null,28,30,66214,"Renfrew County DSB"]
[null,null,17,19,66109,"Simcoe County DSB"]
[null,null,44,49,67091,"Simcoe Muskoka Catholic DSB"]
[null,null,39,44,67040,"St. Clair Catholic DSB"]
[null,null,32,35,29033,"Sudbury Catholic DSB"]
[null,null,34.200000000000003,39,29076,"Superior North Catholic DSB"]
[null,null,6.2,8,28070,"Superior-Greenstone DSB"]
[null,null,11,13,66044,"Thames Valley DSB"]
[null,null,34.1,38,29068,"Thunder Bay Catholic DSB"]
[null,null,40,45,67059,"Toronto Catholic DSB"]
[null,null,12,14,66052,"Toronto DSB"]
[null,null,15,17,66087,"Trillium Lakelands DSB"]
[null,null,26,28,66192,"Upper Canada DSB"]
[null,null,18,20,66117,"Upper Grand DSB"]
[null,null,49,54,67148,"Waterloo Catholic DSB"]
[null,null,24,26,66176,"Waterloo Region DSB"]
[null,null,48,53,67130,"Wellington Catholic DSB"]
[null,null,37,42,67024,"Windsor-Essex Catholic DSB"]
[null,null,42,47,67075,"York Catholic DSB"]
[null,null,16,18,66095,"York Region DSB"]
[]
[]
[null,null,null,null,null,"BOARD INDEX",{"$f":"INDEX($D$3:$D$74, MATCH(BoardName, PARAM!$F$3:$F$74, 0))","v":{"$error":"#N/A"}}]